[Event "Senior Men Russian Championship 2022_HL"]
[Site "Saint-Petersburg, Russia"]
[Date "2022.09.26"]
[Round "3.9"]
[White "Kasantsev, Anatolij B."]
[Black "Vul, Arkadi Eremeevich"]
[Result "1/2-1/2"]
[TimeControl "40+30"]
[WhiteElo "1908"]
[BlackElo "2181"]

1. d4 {[%clk 01:30:58]} {[%emt 00:00:01]} Nf6 {[%clk 01:29:50]} {[%emt
00:01:10]} 2. c4 {[%clk 01:31:14]} {[%emt 00:00:13]} e6 {[%clk 01:30:14]}
{[%emt 00:00:07]} 3. Nc3 {[%clk 01:31:31]} d5 {[%clk 01:30:39]} {[%emt
00:00:19]} 4. cxd5 {[%clk 01:31:34]} exd5 {[%clk 01:31:03]} {[%emt 00:00:32]} 5.
Bg5 {[%emt 00:03:00]} c6 {[%clk 01:28:35]} {[%emt 00:00:12]} 6. e3 {[%clk
01:31:51]} {[%emt 00:00:29]} Nbd7 {[%clk 01:25:59]} {[%emt 00:03:06]} 7. Bd3
{[%clk 01:32:03]} {[%emt 00:00:17]} Be7 {[%clk 01:24:36]} {[%emt 00:01:54]} 8.
Qc2 {[%clk 01:31:44]} {[%emt 00:00:48]} h6 {[%clk 01:13:23]} {[%emt 00:11:44]}
9. Bh4 {[%clk 01:31:56]} {[%emt 00:00:18]} Nh5 {[%clk 01:12:47]} {[%emt
00:01:07]} 10. Bxe7 {[%clk 01:31:19]} {[%emt 00:01:07]} Qxe7 {[%clk 01:13:15]}
{[%emt 00:00:01]} 11. Nge2 {[%clk 01:31:27]} {[%emt 00:00:21]} Nb6 {[%clk
01:11:31]} {[%emt 00:02:16]} 12. h3 {[%clk 01:29:36]} {[%emt 00:02:20]} Nf6
{[%clk 01:10:27]} {[%emt 00:01:34]} 13. g4 {[%clk 01:23:52]} {[%emt 00:06:14]}
Bd7 {[%clk 00:58:38]} {[%emt 00:12:20]} 14. Ng3 {[%clk 01:23:46]} {[%emt
00:00:35]} g6 {[%clk 00:57:34]} {[%emt 00:01:34]} 15. O-O-O {[%clk 01:23:40]}
{[%emt 00:00:36]} O-O-O {[%clk 00:57:32]} {[%emt 00:00:33]} 16. Kb1 {[%clk
01:23:38]} {[%emt 00:00:31]} h5 {[%clk 00:54:13]} {[%emt 00:03:50]} 17. g5
{[%clk 01:20:26]} {[%emt 00:03:42]} Ne8 {[%clk 00:54:26]} {[%emt 00:00:17]} 18.
h4 {[%clk 01:20:42]} {[%emt 00:00:13]} Bg4 {[%clk 00:48:36]} {[%emt 00:06:21]}
19. Rc1 {[%clk 01:20:33]} {[%emt 00:00:38]} Nd6 {[%clk 00:44:49]} {[%emt
00:04:17]} 20. b3 {[%clk 01:09:23]} {[%emt 00:11:40]} Rhe8 {[%clk 00:41:39]}
{[%emt 00:03:40]} 21. a4 {[%clk 01:06:49]} {[%emt 00:03:04]} a5 {[%clk
00:30:17]} {[%emt 00:11:52]} 22. Qd2 {[%clk 00:57:13]} {[%emt 00:10:05]} Bf3
{[%clk 00:22:06]} {[%emt 00:08:42]} 23. Rhg1 {[%clk 00:55:42]} {[%emt
00:02:01]} Ne4 {[%clk 00:14:16]} {[%emt 00:08:21]} 24. Bxe4 {[%emt 00:01:22]}
dxe4 {[%emt 00:00:02]} 1/2-1/2

[Event "Senior Men Russian Championship 2022_HL"]
[Site "Saint-Petersburg, Russia"]
[Date "2022.09.27"]
[Round "4.1"]
[White "Provotorov, Alexandr P."]
[Black "Ponfilenok, Vladimir"]
[Result "1/2-1/2"]
[TimeControl "40+30"]
[WhiteElo "2277"]
[BlackElo "2298"]

1. e4 {[%clk 01:30:51]} {[%emt 00:00:07]} e6 {[%clk 01:30:59]} {[%emt
00:00:02]} 2. d3 {[%clk 01:30:46]} {[%emt 00:00:35]} d5 {[%clk 01:31:27]}
{[%emt 00:00:02]} 3. Nd2 {[%clk 01:31:07]} {[%emt 00:00:09]} Nf6 {[%clk
01:31:37]} {[%emt 00:00:20]} 4. Ngf3 {[%clk 01:31:04]} {[%emt 00:00:32]} Nc6
{[%clk 01:31:49]} {[%emt 00:00:18]} 5. c3 {[%clk 01:29:32]} {[%emt 00:02:02]}
Bd6 {[%clk 01:31:01]} {[%emt 00:01:19]} 6. g3 {[%clk 01:26:57]} {[%emt
00:03:04]} O-O {[%clk 01:30:43]} {[%emt 00:00:48]} 7. Bg2 {[%clk 01:27:02]}
{[%emt 00:00:25]} dxe4 {[%clk 01:26:11]} {[%emt 00:05:03]} 8. dxe4 {[%clk
01:23:16]} {[%emt 00:04:16]} e5 {[%clk 01:26:29]} {[%emt 00:00:12]} 9. O-O
{[%clk 01:23:04]} {[%emt 00:00:41]} a5 {[%clk 01:23:41]} {[%emt 00:03:18]} 10.
Qc2 {[%clk 01:10:58]} {[%emt 00:12:36]} Qe7 {[%clk 01:14:31]} {[%emt 00:09:41]}
11. Nc4 {[%clk 01:05:16]} {[%emt 00:06:12]} Bc5 {[%clk 01:14:57]} {[%emt
00:00:03]} 12. Ne3 {[%clk 01:04:20]} {[%emt 00:01:26]} Rd8 {[%clk 01:12:19]}
{[%emt 00:03:08]} 13. Nh4 {[%clk 00:51:47]} {[%emt 00:13:04]} Be6 {[%clk
01:10:29]} {[%emt 00:02:18]} 14. Nef5 {[%clk 00:51:28]} {[%emt 00:00:49]} Qd7
{[%clk 01:07:05]} {[%emt 00:03:55]} 15. Bg5 {[%clk 00:48:33]} {[%emt 00:03:25]}
Qd3 {[%clk 01:06:51]} {[%emt 00:00:44]} 16. Qc1 {[%clk 00:48:48]} {[%emt
00:00:16]} Nxe4 {[%clk 01:06:16]} {[%emt 00:01:05]} 17. Bxd8 {[%clk 00:44:19]}
{[%emt 00:05:00]} Rxd8 {[%clk 01:06:43]} {[%emt 00:00:02]} 18. Bxe4 {[%clk
00:43:50]} {[%emt 00:00:59]} Qxe4 {[%clk 01:07:11]} {[%emt 00:00:02]} 19. Qg5
{[%clk 00:43:44]} {[%emt 00:00:36]} Bf8 {[%clk 01:05:45]} {[%emt 00:01:56]} 20.
Rae1 {[%clk 00:40:50]} {[%emt 00:03:25]} Qd3 {[%clk 01:01:10]} {[%emt
00:05:04]} 21. Rd1 {[%clk 00:37:06]} {[%emt 00:04:13]} Qxd1 {[%clk 01:00:48]}
{[%emt 00:00:54]} 22. Rxd1 {[%clk 00:37:30]} {[%emt 00:00:05]} Rxd1+ {[%clk
01:01:10]} {[%emt 00:00:09]} 23. Kg2 {[%clk 00:37:57]} {[%emt 00:00:03]} Rd7
{[%clk 00:56:14]} {[%emt 00:05:25]} 24. a3 {[%clk 00:34:45]} {[%emt 00:03:43]}
f6 {[%clk 00:49:00]} {[%emt 00:07:42]} 25. Qh5 {[%clk 00:28:27]} {[%emt
00:06:50]} Rd8 {[%clk 00:37:45]} {[%emt 00:11:44]} 26. Qg4 {[%clk 00:25:54]}
{[%emt 00:03:03]} Re8 {[%clk 00:34:32]} {[%emt 00:03:42]} 27. Kg1 {[%clk
00:17:45]} {[%emt 00:08:40]} Nd8 {[%clk 00:26:46]} {[%emt 00:08:16]} 28. Qa4
{[%clk 00:14:40]} {[%emt 00:03:36]} c6 {[%clk 00:24:47]} {[%emt 00:02:29]} 29.
Ne3 {[%clk 00:14:34]} {[%emt 00:00:35]} b6 {[%clk 00:24:22]} {[%emt 00:00:55]}
30. b4 {[%clk 00:14:11]} {[%emt 00:00:53]} axb4 {[%clk 00:24:34]} {[%emt
00:00:19]} 31. axb4 {[%clk 00:14:37]} {[%emt 00:00:03]} b5 {[%clk 00:19:23]}
{[%emt 00:05:41]} 32. Qc2 {[%emt 00:05:55]} Re7 33. Nf3 Rd7 {[%emt 00:00:01]}
34. Nd2 1/2-1/2

[Event "Senior Men Russian Championship 2022_HL"]
[Site "Saint-Petersburg, Russia"]
[Date "2022.09.27"]
[Round "4.2"]
[White "Ionov, Sergey"]
[Black "Raetsky, Alexander"]
[Result "1/2-1/2"]
[TimeControl "40+30"]
[WhiteElo "2513"]
[BlackElo "2384"]

1. c4 {[%clk 01:30:55]} {[%emt 00:00:04]} e5 {[%clk 01:28:57]} {[%emt
00:02:04]} 2. g3 {[%clk 01:31:03]} {[%emt 00:00:22]} Nf6 {[%clk 01:25:22]}
{[%emt 00:04:04]} 3. Bg2 {[%clk 01:31:03]} {[%emt 00:00:30]} c6 {[%clk
01:25:42]} {[%emt 00:00:10]} 4. Nf3 {[%clk 01:30:26]} {[%emt 00:01:07]} e4
{[%clk 01:21:19]} {[%emt 00:04:52]} 5. Nd4 {[%clk 01:29:48]} {[%emt 00:01:09]}
d5 {[%clk 01:21:25]} {[%emt 00:00:24]} 6. cxd5 {[%clk 01:30:12]} {[%emt
00:00:06]} Qxd5 {[%clk 01:18:27]} {[%emt 00:03:28]} 7. Nc2 {[%clk 01:30:35]}
{[%emt 00:00:07]} Qh5 {[%clk 01:12:02]} {[%emt 00:06:55]} 8. Ne3 {[%clk
01:14:42]} {[%emt 00:16:22]} Bh3 {[%clk 01:01:15]} {[%emt 00:11:17]} 9. Qb3
{[%clk 01:13:56]} {[%emt 00:01:17]} Nbd7 {[%clk 00:46:20]} {[%emt 00:15:26]} 10.
Qxb7 {[%clk 01:10:17]} {[%emt 00:04:08]} Rb8 {[%clk 00:46:26]} {[%emt
00:00:24]} 11. Qxc6 {[%clk 01:10:22]} {[%emt 00:00:25]} Bc5 {[%clk 00:46:26]}
{[%emt 00:00:30]} 12. Bxh3 {[%clk 00:59:57]} {[%emt 00:10:56]} Qxh3 {[%clk
00:45:17]} {[%emt 00:01:38]} 13. Nc3 {[%clk 01:00:21]} {[%emt 00:00:06]} Bxe3
{[%clk 00:34:50]} {[%emt 00:10:57]} 14. fxe3 {[%clk 01:00:26]} {[%emt
00:00:24]} Qg2 {[%clk 00:34:57]} {[%emt 00:00:23]} 15. Rf1 {[%clk 01:00:51]}
{[%emt 00:00:06]} O-O {[%clk 00:34:20]} {[%emt 00:01:06]} 16. Rf2 {[%clk
01:01:17]} {[%emt 00:00:05]} Qg1+ {[%clk 00:34:12]} {[%emt 00:00:38]} 17. Rf1
{[%clk 01:01:42]} {[%emt 00:00:05]} Qg2 {[%clk 00:23:02]} {[%emt 00:11:40]} 18.
Rf2 {[%clk 01:01:56]} {[%emt 00:00:15]} Qg1+ {[%clk 00:23:27]} {[%emt
00:00:06]} 19. Rf1 {[%clk 01:02:21]} {[%emt 00:00:05]} Qg2 {[%clk 00:14:03]}
{[%emt 00:09:54]} 1/2-1/2

[Event "Senior Men Russian Championship 2022_HL"]
[Site "Saint-Petersburg, Russia"]
[Date "2022.09.27"]
[Round "4.3"]
[White "Balashov, Yuri S"]
[Black "Mishuchkov, Nikolai M."]
[Result "1/2-1/2"]
[TimeControl "40+30"]
[WhiteElo "2395"]
[BlackElo "2258"]

1. d4 {[%clk 01:30:56]} {[%emt 00:00:03]} Nf6 {[%clk 01:30:50]} {[%emt
00:00:10]} 2. c4 {[%clk 01:31:18]} {[%emt 00:00:08]} e6 {[%clk 01:31:15]}
{[%emt 00:00:05]} 3. Nc3 {[%clk 01:31:37]} {[%emt 00:00:10]} Bb4 {[%clk
01:31:33]} {[%emt 00:00:13]} 4. Nf3 {[%clk 01:31:55]} {[%emt 00:00:12]} O-O
{[%clk 01:28:38]} {[%emt 00:03:25]} 5. Bg5 {[%clk 01:31:17]} {[%emt 00:01:08]}
h6 {[%clk 01:21:43]} {[%emt 00:07:25]} 6. Bh4 {[%clk 01:31:38]} {[%emt
00:00:08]} d5 {[%clk 01:20:36]} {[%emt 00:01:39]} 7. e3 {[%clk 01:31:27]}
{[%emt 00:00:39]} Nbd7 {[%clk 01:19:43]} {[%emt 00:01:23]} 8. Rc1 {[%clk
01:22:17]} {[%emt 00:09:40]} c6 {[%clk 01:19:30]} {[%emt 00:00:45]} 9. Qc2
{[%clk 01:13:46]} {[%emt 00:09:00]} Be7 {[%clk 01:14:58]} {[%emt 00:05:02]} 10.
Bd3 {[%clk 01:11:56]} {[%emt 00:02:19]} dxc4 {[%clk 01:12:12]} {[%emt
00:03:17]} 11. Bxc4 {[%clk 01:12:20]} {[%emt 00:00:06]} Nd5 {[%clk 01:12:32]}
{[%emt 00:00:10]} 12. Bg3 {[%clk 01:06:29]} {[%emt 00:06:20]} Qa5 {[%clk
00:55:20]} {[%emt 00:17:43]} 13. O-O {[%clk 01:06:26]} {[%emt 00:00:32]} Nxc3
{[%clk 00:48:42]} {[%emt 00:07:09]} 14. bxc3 {[%clk 01:06:43]} {[%emt
00:00:13]} b5 {[%clk 00:42:45]} {[%emt 00:06:28]} 15. Bb3 {[%clk 01:01:54]}
{[%emt 00:05:17]} Bb7 {[%clk 00:41:49]} {[%emt 00:01:26]} 16. a4 {[%clk
00:59:21]} {[%emt 00:03:04]} Rfe8 {[%clk 00:31:48]} {[%emt 00:10:31]} 17. Ra1
{[%clk 00:57:56]} {[%emt 00:01:55]} b4 {[%clk 00:31:34]} {[%emt 00:00:45]} 18.
cxb4 {[%clk 00:54:32]} {[%emt 00:03:53]} Bxb4 {[%clk 00:31:52]} {[%emt
00:00:12]} 19. Bc4 {[%clk 00:53:13]} {[%emt 00:01:49]} Rac8 {[%clk 00:25:39]}
{[%emt 00:06:42]} 20. Rfd1 {[%clk 00:52:16]} {[%emt 00:01:27]} Ba6 {[%clk
00:18:32]} {[%emt 00:07:39]} 21. Rab1 {[%clk 00:48:01]} {[%emt 00:04:43]} Bf8
{[%clk 00:16:49]} {[%emt 00:02:14]} 22. Bxa6 {[%clk 00:46:24]} {[%emt
00:02:06]} Qxa6 {[%clk 00:17:14]} {[%emt 00:00:05]} 23. a5 {[%clk 00:44:19]}
{[%emt 00:02:35]} c5 {[%clk 00:16:04]} {[%emt 00:01:40]} 24. Qe4 {[%clk
00:41:29]} {[%emt 00:03:20]} cxd4 {[%clk 00:15:11]} {[%emt 00:01:23]} 25. Qb7
{[%clk 00:37:19]} {[%emt 00:04:40]} Qxb7 {[%clk 00:15:23]} {[%emt 00:00:19]} 26.
Rxb7 {[%clk 00:37:44]} {[%emt 00:00:05]} Nc5 {[%clk 00:15:49]} {[%emt
00:00:04]} 27. Rxa7 {[%clk 00:38:07]} {[%emt 00:00:07]} dxe3 {[%clk 00:15:55]}
{[%emt 00:00:24]} 28. fxe3 {[%clk 00:38:32]} {[%emt 00:00:04]} Ne4 {[%clk
00:11:46]} {[%emt 00:04:39]} 29. Rb7 {[%clk 00:36:50]} {[%emt 00:02:12]} Bc5
{[%clk 00:05:22]} {[%emt 00:06:55]} 30. Nd4 {[%clk 00:35:49]} {[%emt 00:01:31]}
Nxg3 {[%clk 00:04:09]} {[%emt 00:01:44]} 31. hxg3 {[%clk 00:36:13]} {[%emt
00:00:05]} Ra8 {[%clk 00:03:52]} {[%emt 00:00:47]} 32. Rb5 {[%clk 00:34:02]}
{[%emt 00:02:40]} Bxd4 {[%clk 00:03:52]} {[%emt 00:00:30]} 33. Rxd4 {[%clk
00:34:13]} {[%emt 00:00:19]} Re7 {[%clk 00:04:13]} {[%emt 00:00:09]} 1/2-1/2

[Event "Senior Men Russian Championship 2022_HL"]
[Site "Saint-Petersburg, Russia"]
[Date "2022.09.27"]
[Round "4.4"]
[White "Pozin, Sergey"]
[Black "Kalegin, Evgenij"]
[Result "1/2-1/2"]
[TimeControl "40+30"]
[WhiteElo "2257"]
[BlackElo "2386"]

1. d4 {[%clk 01:30:57]} {[%emt 00:00:02]} Nf6 {[%clk 01:30:54]} {[%emt
00:00:05]} 2. c4 {[%clk 01:31:19]} {[%emt 00:00:10]} g6 {[%clk 01:31:17]}
{[%emt 00:00:07]} 3. Nc3 {[%clk 01:31:39]} {[%emt 00:00:10]} Bg7 {[%clk
01:31:33]} {[%emt 00:00:13]} 4. Nf3 {[%clk 01:31:34]} {[%emt 00:00:35]} O-O
{[%clk 01:31:47]} {[%emt 00:00:16]} 5. e4 {[%clk 01:31:22]} {[%emt 00:00:42]}
d6 {[%clk 01:31:50]} {[%emt 00:00:27]} 6. Be2 {[%clk 01:31:42]} {[%emt
00:00:10]} e5 {[%clk 01:31:47]} {[%emt 00:00:34]} 7. O-O {[%clk 01:31:35]}
{[%emt 00:00:37]} Nbd7 {[%clk 01:31:33]} {[%emt 00:00:44]} 8. Qc2 {[%clk
01:30:34]} {[%emt 00:01:30]} c6 {[%clk 01:30:51]} {[%emt 00:01:12]} 9. Be3
{[%clk 01:29:52]} {[%emt 00:01:12]} h6 {[%clk 01:29:26]} {[%emt 00:01:56]} 10.
Rad1 {[%clk 01:29:12]} {[%emt 00:01:09]} Qe7 {[%clk 01:28:18]} {[%emt
00:01:38]} 11. h3 {[%clk 01:27:44]} {[%emt 00:01:59]} exd4 {[%clk 01:28:11]}
{[%emt 00:00:37]} 12. Rxd4 {[%clk 01:22:54]} {[%emt 00:05:20]} Re8 {[%clk
01:24:19]} {[%emt 00:04:22]} 13. Bf4 {[%clk 01:17:53]} {[%emt 00:05:31]} Ne5
{[%clk 01:21:20]} {[%emt 00:03:29]} 14. Rd2 {[%clk 01:04:00]} {[%emt 00:14:23]}
Nh7 {[%clk 01:13:50]} {[%emt 00:07:59]} 15. Rfd1 {[%clk 01:03:35]} {[%emt
00:00:55]} Nxf3+ {[%clk 01:10:35]} {[%emt 00:03:45]} 16. Bxf3 {[%clk 01:04:00]}
{[%emt 00:00:05]} Be5 {[%clk 01:10:57]} {[%emt 00:00:08]} 17. Bxe5 {[%clk
01:01:17]} {[%emt 00:03:13]} dxe5 {[%clk 01:11:19]} {[%emt 00:00:08]} 18. Bg4
{[%clk 00:44:45]} {[%emt 00:17:02]} Bxg4 {[%clk 01:11:01]} {[%emt 00:00:48]} 19.
hxg4 {[%clk 00:45:14]} {[%emt 00:00:01]} Nf6 {[%clk 01:09:00]} {[%emt
00:02:31]} 20. f3 {[%clk 00:37:48]} {[%emt 00:07:56]} Qc5+ {[%clk 01:07:22]}
{[%emt 00:02:08]} 21. Kh2 {[%clk 00:38:13]} {[%emt 00:00:05]} Kg7 {[%clk
01:05:14]} {[%emt 00:02:38]} 22. Na4 {[%clk 00:35:44]} {[%emt 00:02:59]} Qe3
{[%clk 01:00:58]} {[%emt 00:04:46]} 23. Qb3 {[%clk 00:33:41]} {[%emt 00:02:33]}
Qf4+ {[%clk 00:55:38]} {[%emt 00:05:49]} 24. Kg1 {[%clk 00:28:38]} {[%emt
00:05:33]} b6 {[%clk 00:48:49]} {[%emt 00:07:20]} 25. Nc3 {[%clk 00:27:13]}
{[%emt 00:01:55]} Qe3+ {[%clk 00:48:02]} {[%emt 00:01:17]} 26. Kf1 {[%clk
00:27:26]} {[%emt 00:00:16]} h5 {[%clk 00:47:58]} {[%emt 00:00:34]} 27. gxh5
{[%clk 00:27:26]} {[%emt 00:00:31]} Nxh5 {[%clk 00:44:54]} {[%emt 00:03:34]} 28.
Ne2 {[%clk 00:27:01]} {[%emt 00:00:56]} Qg5 {[%clk 00:40:31]} {[%emt 00:04:52]}
29. c5 {[%clk 00:24:46]} {[%emt 00:02:45]} bxc5 {[%clk 00:39:23]} {[%emt
00:01:38]} 30. Rd7 {[%clk 00:25:11]} {[%emt 00:00:05]} Rf8 {[%clk 00:31:30]}
{[%emt 00:08:23]} 31. Rc7 {[%clk 00:23:10]} {[%emt 00:02:32]} Nf4 {[%clk
00:26:31]} {[%emt 00:05:28]} 32. Nxf4 {[%clk 00:22:26]} {[%emt 00:01:14]} Qxf4
{[%clk 00:26:56]} {[%emt 00:00:05]} 33. Rdd7 {[%clk 00:21:21]} {[%emt
00:01:35]} Rad8 {[%clk 00:24:08]} {[%emt 00:03:17]} 34. Rxa7 {[%clk 00:15:29]}
{[%emt 00:06:23]} Rxd7 {[%clk 00:24:20]} {[%emt 00:00:18]} 35. Rxd7 {[%clk
00:15:52]} {[%emt 00:00:07]} Rh8 {[%clk 00:24:26]} {[%emt 00:00:23]} 36. Kg1
{[%clk 00:07:01]} {[%emt 00:09:22]} Rh5 {[%clk 00:14:37]} {[%emt 00:10:19]} 37.
a4 {[%clk 00:05:33]} {[%emt 00:01:58]} c4 {[%clk 00:14:45]} {[%emt 00:00:22]}
38. Qc3 {[%clk 00:05:58]} {[%emt 00:00:04]} Qh2+ {[%clk 00:14:49]} {[%emt
00:00:26]} 39. Kf1 {[%clk 00:04:16]} {[%emt 00:02:13]} Qg3 {[%clk 00:12:46]}
{[%emt 00:02:33]} 40. Kg1 {[%clk 00:32:22]} {[%emt 00:02:22]} Qh2+ {[%clk
00:42:29]} {[%emt 00:00:49]} 41. Kf1 {[%clk 00:32:36]} {[%emt 00:00:15]} Qg3
{[%clk 00:41:59]} {[%emt 00:01:01]} 42. Kg1 {[%clk 00:32:52]} {[%emt 00:00:13]}
Rh2 {[%clk 00:28:14]} {[%emt 00:14:16]} 43. Rd2 {[%clk 00:29:46]} {[%emt
00:03:36]} 1/2-1/2

[Event "Senior Men Russian Championship 2022_HL"]
[Site "Saint-Petersburg, Russia"]
[Date "2022.09.27"]
[Round "4.5"]
[White "Kasantsev, Anatolij B."]
[Black "Loginov, Valery A"]
[Result "0-1"]
[TimeControl "40+30"]
[WhiteElo "1908"]
[BlackElo "2478"]

1. d4 {[%clk 01:30:58]} {[%emt 00:00:01]} Nf6 {[%clk 01:30:51]} {[%emt
00:00:10]} 2. c4 {[%clk 01:31:13]} {[%emt 00:00:15]} e6 {[%clk 01:31:10]}
{[%emt 00:00:10]} 3. Nc3 {[%clk 01:31:29]} {[%emt 00:00:14]} Bb4 {[%clk
01:31:32]} {[%emt 00:00:07]} 4. Qc2 {[%clk 01:31:44]} {[%emt 00:00:16]} d5
{[%clk 01:31:52]} {[%emt 00:00:09]} 5. cxd5 {[%clk 01:31:48]} {[%emt 00:00:26]}
exd5 {[%clk 01:32:17]} {[%emt 00:00:06]} 6. Bg5 {[%clk 01:32:06]} {[%emt
00:00:11]} h6 {[%clk 01:32:39]} {[%emt 00:00:09]} 7. Bh4 {[%clk 01:32:11]}
{[%emt 00:00:25]} O-O {[%clk 01:32:47]} {[%emt 00:00:22]} 8. e3 {[%clk
01:31:36]} {[%emt 00:01:04]} c5 {[%clk 01:32:56]} {[%emt 00:00:21]} 9. Bd3
{[%clk 01:28:25]} {[%emt 00:03:41]} c4 {[%clk 01:33:13]} {[%emt 00:00:15]} 10.
Bf5 {[%clk 01:28:22]} {[%emt 00:00:32]} Bxf5 {[%clk 01:33:17]} {[%emt
00:00:25]} 11. Qxf5 {[%clk 01:28:50]} {[%emt 00:00:03]} Qd7 {[%clk 01:33:32]}
{[%emt 00:00:15]} 12. Qf3 {[%clk 01:28:23]} {[%emt 00:00:57]} Ne4 {[%clk
01:32:36]} {[%emt 00:01:26]} 13. Rc1 {[%clk 01:26:40]} {[%emt 00:02:13]} Nc6
{[%clk 01:26:47]} {[%emt 00:06:20]} 14. Qh3 {[%clk 01:25:45]} {[%emt 00:01:24]}
f5 {[%clk 01:26:05]} {[%emt 00:01:12]} 15. f3 {[%clk 01:25:22]} {[%emt
00:00:53]} Nxc3 {[%clk 01:25:29]} {[%emt 00:01:06]} 16. bxc3 {[%clk 01:25:50]}
{[%emt 00:00:02]} Ba3 {[%clk 01:15:35]} {[%emt 00:10:25]} 17. Rb1 {[%clk
01:25:18]} {[%emt 00:01:01]} Rae8 {[%clk 01:12:49]} {[%emt 00:03:16]} 18. Bf2
{[%clk 01:25:30]} {[%emt 00:00:18]} Qf7 {[%clk 01:10:57]} {[%emt 00:02:22]} 19.
f4 {[%clk 01:24:46]} {[%emt 00:01:13]} b5 {[%clk 01:10:26]} {[%emt 00:01:02]}
20. Ne2 {[%clk 01:24:48]} {[%emt 00:00:27]} b4 {[%clk 01:10:26]} {[%emt
00:00:30]} 21. O-O {[%clk 01:24:57]} {[%emt 00:00:21]} a5 {[%clk 01:07:29]}
{[%emt 00:03:28]} 22. Be1 {[%clk 01:23:09]} {[%emt 00:02:18]} Rb8 {[%clk
00:59:22]} {[%emt 00:08:38]} 23. Bd2 {[%clk 01:18:59]} {[%emt 00:04:39]} b3
{[%clk 00:58:44]} {[%emt 00:01:08]} 24. axb3 {[%clk 01:13:33]} {[%emt
00:05:57]} cxb3 {[%clk 00:59:00]} {[%emt 00:00:14]} 25. g4 {[%clk 01:13:08]}
{[%emt 00:00:55]} a4 {[%clk 00:58:07]} {[%emt 00:01:24]} 26. gxf5 {[%clk
01:12:43]} {[%emt 00:00:54]} Qxf5 {[%clk 00:58:13]} {[%emt 00:00:24]} 27. Qf3
{[%clk 01:12:15]} {[%emt 00:00:58]} Ne7 {[%clk 00:55:24]} {[%emt 00:03:18]} 28.
Ng3 {[%clk 01:11:28]} {[%emt 00:01:18]} Qd3 {[%clk 00:55:27]} {[%emt 00:00:26]}
29. Rfd1 {[%clk 01:11:45]} {[%emt 00:00:14]} Bd6 {[%clk 00:55:33]} {[%emt
00:00:24]} 30. Be1 {[%clk 01:11:27]} {[%emt 00:00:48]} Qg6 {[%clk 00:55:44]}
{[%emt 00:00:20]} 31. Kh1 {[%clk 01:07:05]} {[%emt 00:04:52]} a3 {[%clk
00:55:32]} {[%emt 00:00:41]} 32. f5 {[%clk 01:06:51]} {[%emt 00:00:45]} Rxf5
{[%clk 00:55:19]} {[%emt 00:00:44]} 33. Nxf5 {[%clk 01:07:08]} {[%emt
00:00:12]} Qxf5 {[%clk 00:55:43]} {[%emt 00:00:05]} 34. Qxf5 {[%clk 01:05:42]}
{[%emt 00:01:57]} Nxf5 {[%clk 00:56:08]} {[%emt 00:00:06]} 35. e4 {[%clk
01:06:03]} {[%emt 00:00:08]} dxe4 {[%clk 00:55:45]} {[%emt 00:00:53]} 36. c4
{[%clk 01:06:21]} {[%emt 00:00:12]} Ne3 {[%clk 00:54:29]} {[%emt 00:01:45]} 37.
Rdc1 {[%clk 01:01:29]} {[%emt 00:05:23]} b2 {[%clk 00:54:38]} {[%emt 00:00:21]}
0-1